fUST/lending_fUST_20250817
["ID","MTS","AMOUNT","RATE_DAILY","PERIOD"]
[379840062,1755421844874,-151.0,0.00020395,2]
[379840064,1755421844883,-4271.85,0.00020395,2]
[379840066,1755421844892,-480.0,0.00020395,2]
[379840068,1755421844901,-480.0,0.00020395,2]
[379840070,1755421844910,-480.0,0.00020395,2]
[379840072,1755421844920,-261.1360462,0.00020396,2]
[379840074,1755421844929,-500.0,0.00020396,2]
[379840076,1755421844938,-255.0,0.00020396,2]
[379840078,1755421844948,-151.0,0.00020396,2]
[379840080,1755421844957,-480.0,0.00020396,2]
[379840082,1755421844966,-151.0,0.00020396,2]
[379840084,1755421844976,-480.0,0.00020396,2]
[379840086,1755421844984,-151.0,0.00020396,2]
[379840088,1755421844993,-151.0,0.00020396,2]
[379840090,1755421845003,-151.0,0.00020396,2]
[379840092,1755421845012,-151.0,0.00020396,2]
[379840094,1755421845022,-151.125281,0.00020396,2]
[379840096,1755421845031,-151.0,0.00020396,2]
[379840098,1755421845040,-1201.45,0.00020396,2]
[379840100,1755421845049,-480.0,0.00020396,2]
[379840102,1755421845058,-584.94,0.00020396,2]
[379840104,1755421845068,-480.0,0.00020396,2]
[379840105,1755421845077,-151.0,0.00020397,2]
[379840107,1755421845087,-151.0,0.00020397,2]
[379840110,1755421845096,-151.0,0.00020397,2]
[379840112,1755421845106,-265.146987,0.00020397,2]
[379840114,1755421845116,-304.698896,0.00020397,2]
[379840116,1755421845126,-304.698896,0.00020397,2]
[379840120,1755421845256,-247.575286,0.00020397,2]
[379840121,1755421845266,-247.575286,0.00020397,2]
[379840122,1755421845275,-4068.69,0.00020397,2]
[379840123,1755421845284,-480.0,0.00020398,2]
[379840124,1755421845294,-480.0,0.00020398,2]
[379840125,1755421845303,-331.889014,0.00020398,2]
[379840126,1755421845312,-331.889014,0.00020398,2]
[379840127,1755421845321,-2864.31,0.00020398,2]
[379840128,1755421845330,-151.0,0.000204,3]
[379840129,1755421845340,-1271.35741305,0.000204,2]
[379840130,1755421845350,-545.80340598,0.00020401,2]
[379840131,1755421845359,-2181.03041028,0.00020401,2]
[379840132,1755421845368,-302.24502706,0.00020401,2]
[379840133,1755421845377,-1207.77112813,0.00020401,2]
[379840134,1755421845390,-604.77200055,0.00020401,2]
[379840135,1755421845399,-207.0,0.0002041,2]
[379840136,1755421845409,-153.32251725,0.00020411,2]
[379840137,1755421845418,-500.0,0.00020418,2]
[379840138,1755421845427,-500.0,0.00020418,2]
[379840139,1755421845438,-522.748646,0.00020418,2]
[379840140,1755421845447,-500.0,0.00020418,2]
[379840141,1755421845457,-500.0,0.00020418,2]
[379840142,1755421845466,-593.24961039,0.00020418,2]
[379840143,1755421845476,-168.0,0.00020426,2]
[379840144,1755421845485,-7754.12691642,0.00020427,2]
[379840145,1755421845494,-372.5,0.00020471,2]
[379840146,1755421845503,-500.0,0.00020473,2]
[379840147,1755421845512,-500.0,0.00020473,2]
[379840148,1755421845521,-500.0,0.00020473,2]
[379840149,1755421845531,-502.29518042,0.00020473,2]
[379840150,1755421845540,-500.0,0.00020473,2]
[379840151,1755421845549,-500.0,0.00020473,2]
[379840152,1755421845558,-500.0,0.00020473,2]
[379840153,1755421845567,-501.23763847,0.00020473,2]
[379840154,1755421845576,-500.0,0.00020473,2]
[379840156,1755421845586,-500.0,0.00020473,2]
[379840158,1755421845596,-500.0,0.00020473,2]
[379840160,1755421845609,-501.25711225,0.00020473,2]
[379840162,1755421845618,-500.0,0.00020473,2]
[379840164,1755421845627,-394.04902133,0.00020473,2]
[379840166,1755421845636,-428.16216798,0.00020473,2]
[379840168,1755421845645,-500.64506414,0.00020473,2]
[379840169,1755421845654,-500.0,0.00020473,2]
[379840171,1755421845663,-500.0,0.00020473,2]
[379840173,1755421845671,-500.0,0.00020473,2]
[379840175,1755421845680,-500.0,0.00020473,2]
[379840177,1755421845689,-500.0,0.00020473,2]
[379840179,1755421845698,-500.0,0.00020473,2]
[379840181,1755421845707,-500.0,0.00020473,2]
[379840183,1755421845716,-502.45168872,0.00020473,2]
[379840185,1755421845727,-500.0,0.00020473,2]
[379840187,1755421845736,-500.0,0.00020473,2]
[379840189,1755421845746,-500.48515569,0.00020473,2]
[379840191,1755421845755,-500.0,0.00020473,2]
[379840193,1755421845764,-517.02090165,0.00020473,2]
[379840195,1755421845774,-500.0,0.00020473,2]
[379840197,1755421845783,-500.33051273,0.00020473,2]
[379840199,1755421845792,-500.0,0.00020473,2]
[379840201,1755421845801,-500.0,0.00020473,2]
[379840203,1755421845810,-500.0,0.00020473,2]
[379840205,1755421845820,-500.0,0.00020473,2]
[379840207,1755421845829,-500.0,0.00020473,2]
[379840209,1755421845838,-500.0,0.00020473,2]
[379840211,1755421845847,-168.0,0.00020473,2]
[379840213,1755421845856,-160.0,0.00020486,2]
[379840215,1755421845865,-177.0,0.00020499,2]
[379840217,1755421845874,-300.80260306,0.00020499,2]
[379840219,1755421845884,-200.49264809,0.00020499,2]
[379840221,1755421845893,-3487.49177874,0.000205,2]
[379840223,1755421845902,-61570.37,0.000205,2]
[379840225,1755421845911,-61209.95,0.000205,2]
[379840227,1755421845920,-152.399952,0.000205,2]
[379840229,1755421845929,-152.075213,0.000205,2]
[379840231,1755421845939,-151.0,0.000205,2]
[379840233,1755421845948,-212.932525,0.000205,2]
[379840235,1755421845957,-212.932525,0.000205,2]
[379840237,1755421845966,-151.0,0.000205,2]
[379840239,1755421845976,-151.0,0.000205,2]
[379840241,1755421845985,-151.0,0.000205,2]
[379840243,1755421845994,-151.0,0.000205,2]
[379840245,1755421846003,-151.0,0.000205,2]
[379840247,1755421846013,-151.0,0.000205,2]
[379840249,1755421846022,-2017.421718,0.000205,2]
[379840251,1755421846032,-2017.421718,0.000205,2]
[379840254,1755421846040,-151.0,0.000205,2]
[379840257,1755421846051,-151.0,0.000205,2]
[379840260,1755421846060,-151.0,0.000205,2]
[379840262,1755421846069,-151.0,0.000205,2]
[379840264,1755421846078,-221967.81810768,0.000205,2]
[379840282,1755421846215,-10997.84123296,0.000205,2]
[379840290,1755421846288,269.91631024,0.000189,2]
[379840296,1755421846337,-386.30706356,0.000205,2]
[379840305,1755421846414,-480.0,0.00019572,2]
[379840307,1755421846424,-480.0,0.00019573,2]
[379840309,1755421846434,-175.815399,0.00020147,2]
[379840311,1755421846444,-175.815399,0.00020397,2]
[379840313,1755421846453,-209983.43043537,0.000205,2]
[379842318,1755421899084,1780.88,0.00019563,2]
[379842319,1755421917035,3844.62536333,0.00019565,2]
[379842320,1755421917062,1155.37463667,0.00019565,2]
[379842321,1755421918787,10000.0,0.00019008,2]
[379842322,1755421933494,5000.0,0.00019565,2]
[379842325,1755421951283,3844.62536333,0.00019565,2]
[379842326,1755421951306,1155.37463667,0.00019565,2]
[379842332,1755421979571,500.0,0.00018986,2]
[379842408,1755422142396,499.86051708,0.000189,2]
[379842429,1755422168972,843.52280179,0.00019472,2]
[379842434,1755422177770,166.55,0.00014384,2]
[379842452,1755422222745,178.9264919,0.00018838,2]
[379842455,1755422227758,2355.6500212,0.00018689,2]
[379842458,1755422235639,3208.61905764,0.00019565,2]
[379842463,1755422280141,1000.0,0.00028767,120]
[379842476,1755422340442,577.965164,0.00018575,2]
[379842484,1755422354999,1791.38094236,0.00019565,2]
[379842493,1755422384938,738.08245161,0.00019472,2]
[379842496,1755422408832,3828.44756819,0.0001956,2]
[379842498,1755422409851,151.0,0.0001956,2]
[379842501,1755422443898,333.24034472,0.000189,2]
[379842518,1755422532544,1003.7219312,0.00018575,2]
[379842524,1755422567957,455.9307838,0.00017,4]
[379842529,1755422581835,419.948819,0.00013699,2]
[379842536,1755422605648,645.82214515,0.00019472,2]
[379842539,1755422616876,243.154916,0.00018985,2]
[379842540,1755422617207,185.63567753,0.00018986,2]
[379842552,1755422745343,222.16022981,0.000189,2]
[379842555,1755422829091,495.00550035,0.00019471,2]
[379842556,1755422829618,70.08887663,0.00019471,2]
[379842557,1755422847522,3124.97800305,0.00019565,2]
[379842558,1755422863799,1875.02199695,0.00019565,2]
[379842560,1755422869660,190.40256324,0.00018,2]
[379842571,1755422912609,14739.50856013,0.00017,2]
[379842572,1755422912631,20000.0,0.00017,2]
[379842573,1755422912652,6068.1340508,0.00017,2]
[379842574,1755422919097,619.37008355,0.00027718,120]
[379842575,1755422924862,5000.0,0.00019565,2]
[379842576,1755422940954,5000.0,0.00019565,2]
[379842577,1755422956444,3931.8659492,0.00019565,2]
[379842578,1755422956473,1068.1340508,0.00019565,2]
[379842579,1755422972370,5000.0,0.00019565,2]
[379842580,1755422989008,5000.0,0.00019565,2]
[379842581,1755423029794,500.0,0.00018986,2]
[379842603,1755423031959,-1103.0,0.00019569,2]
[379842604,1755423031969,-300.0,0.00019569,2]
[379842605,1755423031978,-1200.0,0.00019569,2]
[379842606,1755423031988,-291.28201368,0.0001957,2]
[379842607,1755423031997,-500.0,0.0001957,2]
[379842608,1755423032007,-500.0,0.0001957,2]
[379842610,1755423032016,-394.54486764,0.0001957,2]
[379842612,1755423032025,-480.0,0.0001957,2]
[379842613,1755423032035,-480.0,0.0001957,2]
[379842614,1755423032044,-480.0,0.0001957,2]
[379842615,1755423032054,-480.0,0.0001957,2]
[379842616,1755423032064,-508.55664136,0.0001957,2]
[379842617,1755423032073,-1033.65,0.0001957,2]
[379842618,1755423032083,-480.0,0.0001957,2]
[379842619,1755423032092,-480.0,0.0001957,2]
[379842621,1755423032102,-480.0,0.0001957,2]
[379842623,1755423032111,-480.0,0.0001957,2]
[379842625,1755423032127,-480.0,0.0001957,2]
[379842627,1755423032137,-463.49471353,0.0001957,2]
[379842629,1755423032146,-480.0,0.0001957,2]
[379842631,1755423032156,-500.0,0.00019571,2]
[379842632,1755423032168,-487.86,0.00019571,2]
[379842633,1755423032178,-480.0,0.00019571,2]
[379842634,1755423032188,-217.38245829,0.00019571,2]
[379842635,1755423032200,-401.10288567,0.00019571,2]
[379842636,1755423032211,-510.45,0.00019571,2]
[379842637,1755423032223,-480.0,0.00019571,2]
[379842638,1755423032241,-117.82361074,0.00019571,2]
[379842665,1755423037974,-521.85,0.0001957,2]
[379842667,1755423037984,-480.0,0.0001957,2]
[379842669,1755423037994,-362.17638926,0.00019571,2]
[379842671,1755423038003,-480.71798147,0.00019571,2]
[379842673,1755423038013,-480.0,0.00019571,2]
[379842675,1755423038022,-480.0,0.00019571,2]
[379842677,1755423038031,-480.0,0.00019571,2]
[379842678,1755423038042,-480.0,0.00019571,2]
[379842680,1755423038051,-480.0,0.00019571,2]
[379842682,1755423038060,-360.0,0.00019571,2]
[379842684,1755423038070,-577.37,0.00019571,2]
[379842686,1755423038079,-480.0,0.00019571,2]
[379842688,1755423038089,-480.0,0.00019571,2]
[379842689,1755423038098,-480.0,0.00019571,2]
[379842691,1755423038107,-480.0,0.00019571,2]
[379842693,1755423038117,-480.0,0.00019571,2]
[379842695,1755423038131,-480.0,0.00019571,2]
[379842697,1755423038140,-481.25729281,0.00019571,2]
[379842699,1755423038150,-480.61422028,0.00019571,2]
[379842701,1755423038168,-480.0,0.00019571,2]
[379842703,1755423038189,-480.0,0.00019571,2]
[379842705,1755423038208,-460.21362179,0.00019571,2]
[379842707,1755423038232,-480.0,0.00019571,2]
[379842709,1755423038254,-154.42754671,0.00019571,2]
[379842711,1755423038277,-480.0,0.00019571,2]
[379842713,1755423038311,-202.4471012,0.00019571,2]
[379842714,1755423038348,-461.49381118,0.00019571,2]
[379842716,1755423038384,-480.0,0.00019571,2]
[379842718,1755423038422,-480.0,0.00019571,2]
[379842720,1755423038460,-480.0,0.00019571,2]
[379842722,1755423038486,-480.0,0.00019571,2]
[379842724,1755423038495,-480.0,0.00019571,2]
[379842726,1755423038505,-480.0,0.00019571,2]
[379842728,1755423038515,-480.0,0.00019571,2]
[379842729,1755423038528,-480.0,0.00019571,2]
[379842731,1755423038538,-480.0,0.00019571,2]
[379842733,1755423038548,-480.0,0.00019571,2]
[379842735,1755423038557,-480.0,0.00019571,2]
[379842737,1755423038567,-480.0,0.00019571,2]
[379842738,1755423038579,-231.11746195,0.00019571,2]
[379842740,1755423038594,-480.0,0.00019571,2]
[379842742,1755423038604,-480.0,0.00019571,2]
[379842744,1755423038615,-480.0,0.00019571,2]
[379842746,1755423038625,-480.0,0.00019571,2]
[379842748,1755423038639,-480.0,0.00019571,2]
[379842750,1755423038649,-480.77,0.00019571,2]
[379842752,1755423038658,-480.0,0.00019571,2]
[379842753,1755423038668,-480.0,0.00019571,2]
[379842755,1755423038677,-480.0,0.00019571,2]
[379842757,1755423038687,-480.0,0.00019571,2]
[379842759,1755423038696,-500.0,0.00019571,2]
[379842761,1755423038705,-500.0,0.00019571,2]
[379842763,1755423038715,-480.0,0.00019571,2]
[379842764,1755423038724,-1265.45,0.00019571,2]
[379842766,1755423038733,-480.0,0.00019571,2]
[379842768,1755423038743,-501.27,0.00019571,2]
[379842770,1755423038752,-480.0,0.00019571,2]
[379842772,1755423038761,-480.0,0.00019571,2]
[379842774,1755423038770,-463.79630478,0.00019571,2]
[379842776,1755423038779,-480.0,0.00019571,2]
[379842777,1755423038791,-463.23798436,0.00019571,2]
[379842779,1755423038801,-440.0,0.00019571,2]
[379842781,1755423038811,-480.0,0.00019571,2]
[379842783,1755423038821,-480.0,0.00019571,2]
[379842785,1755423038830,-480.0,0.00019571,2]
[379842787,1755423038839,-462.81597092,0.00019571,2]
[379842789,1755423038848,-480.0,0.00019571,2]
[379842790,1755423038857,-671.63,0.00019571,2]
[379842792,1755423038866,-480.0,0.00019571,2]
[379842794,1755423038875,-480.0,0.00019571,2]
[379842796,1755423038885,-482.78742704,0.00019571,2]
[379842798,1755423038894,-315.91,0.00019571,2]
[379842800,1755423038903,-461.36177625,0.00019571,2]
[379842801,1755423038912,-1207.33,0.00019571,2]
[379842803,1755423038921,-440.0,0.00019571,2]
[379842805,1755423038931,-480.0,0.00019571,2]
[379842807,1755423038945,-480.0,0.00019571,2]
[379842809,1755423038954,-480.0,0.00019571,2]
[379842811,1755423038963,-480.0,0.00019571,2]
[379842813,1755423038972,-480.0,0.00019571,2]
[379842815,1755423038981,-480.0,0.00019571,2]
[379842817,1755423038991,-480.0,0.00019571,2]
[379842818,1755423039000,-480.0,0.00019571,2]
[379842820,1755423039010,-480.0,0.00019571,2]
[379842822,1755423039019,-499.36,0.00019571,2]
[379842824,1755423039028,-480.0,0.00019571,2]
[379842826,1755423039037,-480.0,0.00019571,2]
[379842828,1755423039047,-480.0,0.00019571,2]
[379842829,1755423039057,-480.0,0.00019571,2]
[379842832,1755423039070,-864.62,0.00019571,2]
[379842833,1755423039079,-481.45701498,0.00019571,2]
[379842835,1755423039089,-481.1624699,0.00019571,2]
[379842837,1755423039098,-480.0,0.00019571,2]
[379842839,1755423039107,-441.16948472,0.00019571,2]
[379842841,1755423039116,-480.0,0.00019571,2]
[379842843,1755423039129,-480.0,0.00019571,2]
[379842844,1755423039139,-461.16645628,0.00019571,2]
[379842846,1755423039148,-480.0,0.00019571,2]
[379842848,1755423039158,-480.0,0.00019571,2]
[379842850,1755423039168,-480.0,0.00019571,2]
[379842852,1755423039177,-1365.75,0.00019571,2]
[379842854,1755423039186,-365.02010874,0.00019571,2]
[379842869,1755423039353,-480.0,0.00019571,2]
[379842871,1755423039363,-480.0,0.00019571,2]
[379842872,1755423039372,-460.0,0.00019571,2]
[379842874,1755423039382,-499.82459895,0.00019571,2]
[379842876,1755423039392,-480.0,0.00019571,2]
[379842878,1755423039402,-480.0,0.00019571,2]
[379842880,1755423039412,-480.0,0.00019571,2]
[379842882,1755423039421,-480.0,0.00019571,2]
[379842883,1755423039431,-480.0,0.00019571,2]
[379842885,1755423039440,-480.0,0.00019571,2]
[379842887,1755423039450,-704.44,0.00019571,2]
[379842889,1755423039460,-480.0,0.00019571,2]
[379842891,1755423039469,-480.0,0.00019571,2]
[379842892,1755423039478,-480.0,0.00019571,2]
[379842894,1755423039487,-480.0,0.00019571,2]
[379842896,1755423039497,-480.0,0.00019571,2]
[379842898,1755423039506,-480.0,0.00019571,2]
[379842900,1755423039515,-480.0,0.00019571,2]
[379842902,1755423039524,-470.88975917,0.00019571,2]
[379842903,1755423039534,-858.38,0.00019571,2]
[379842905,1755423039543,-480.0,0.00019571,2]
[379842907,1755423039552,-480.0,0.00019571,2]
[379842909,1755423039562,-480.0,0.00019571,2]
[379842911,1755423039571,-480.0,0.00019571,2]
[379842913,1755423039580,-480.0,0.00019571,2]
[379842915,1755423039589,-480.0,0.00019571,2]
[379842916,1755423039598,-500.69224744,0.00019571,2]
[379842918,1755423039607,-461.89239036,0.00019571,2]
[379842920,1755423039617,-480.0,0.00019571,2]
[379842922,1755423039626,-2246.85,0.00019571,2]
[379842924,1755423039635,-480.0,0.00019571,2]
[379842926,1755423039644,-710.89,0.00019571,2]
[379842927,1755423039653,-480.0,0.00019571,2]
[379842929,1755423039662,-460.0,0.00019571,2]
[379842931,1755423039673,-481.59996816,0.00019571,2]
[379842933,1755423039682,-481.88,0.00019571,2]
[379842934,1755423039691,-480.0,0.00019571,2]
[379842935,1755423039700,-480.0,0.00019571,2]
[379842936,1755423039709,-480.0,0.00019571,2]
[379842937,1755423039718,-480.0,0.00019571,2]
[379842938,1755423039727,-480.0,0.00019571,2]
[379842939,1755423039736,-480.0,0.00019571,2]
[379842940,1755423039745,-480.0,0.00019571,2]
[379842941,1755423039755,-480.0,0.00019571,2]
[379842942,1755423039763,-480.0,0.00019571,2]
[379842943,1755423039772,-480.0,0.00019571,2]
[379842944,1755423039781,-480.0,0.00019571,2]
[379842945,1755423039790,-480.0,0.00019571,2]
[379842946,1755423039799,-480.0,0.00019571,2]
[379842947,1755423039808,-480.0,0.00019571,2]
[379842948,1755423039817,-500.0,0.00019571,2]
[379842949,1755423039826,-480.0,0.00019571,2]
[379842950,1755423039835,-461.64542696,0.00019571,2]
[379842951,1755423039844,-460.57418229,0.00019571,2]
[379842952,1755423039853,-480.0,0.00019571,2]
[379842953,1755423039863,-480.0,0.00019571,2]
[379842954,1755423039872,-480.0,0.00019571,2]
[379842955,1755423039881,-480.0,0.00019571,2]
[379842956,1755423039890,-480.0,0.00019571,2]
[379842957,1755423039899,-480.0,0.00019571,2]
[379842958,1755423039908,-480.0,0.00019571,2]
[379842959,1755423039917,-480.0,0.00019571,2]
[379842960,1755423039926,-226.63855974,0.00019571,2]
[379842961,1755423039936,-480.0,0.00019571,2]
[379842962,1755423039945,-480.0,0.00019571,2]
[379842963,1755423039955,-480.0,0.00019571,2]
[379842964,1755423039964,-480.0,0.00019571,2]
[379842965,1755423039973,-480.0,0.00019571,2]
[379842966,1755423039982,-480.0,0.00019571,2]
[379842967,1755423039992,-500.0,0.00019571,2]
[379842968,1755423040002,-4226.01,0.00019571,2]
[379842969,1755423040011,-480.0,0.00019571,2]
[379842970,1755423040021,-480.0,0.00019571,2]
[379842971,1755423040030,-510.63,0.00019571,2]
[379842972,1755423040040,-440.0,0.00019572,2]
[379842973,1755423040049,-480.0,0.00019572,2]
[379842974,1755423040059,-480.0,0.00019572,2]
[379842975,1755423040068,-480.0,0.00019572,2]
[379842976,1755423040077,-480.0,0.00019572,2]
[379842977,1755423040086,-480.0,0.00019572,2]
[379842978,1755423040095,-480.0,0.00019572,2]
[379842979,1755423040104,-480.0,0.00019572,2]
[379842980,1755423040113,-480.0,0.00019572,2]
[379842981,1755423040131,-480.0,0.00019572,2]
[379842982,1755423040141,-480.0,0.00019572,2]
[379842983,1755423040150,-480.0,0.00019572,2]
[379842984,1755423040159,-480.0,0.00019572,2]
[379842985,1755423040170,-480.0,0.00019572,2]
[379842986,1755423040179,-480.0,0.00019572,2]
[379842987,1755423040189,-500.0,0.00019572,2]
[379842988,1755423040200,-480.0,0.00019572,2]
[379842989,1755423040209,-480.0,0.00019572,2]
[379842990,1755423040219,-2585.95,0.00019572,2]
[379842991,1755423040228,-480.0,0.00019572,2]
[379842992,1755423040237,-480.0,0.00019572,2]
[379842993,1755423040246,-480.0,0.00019572,2]
[379842994,1755423040255,-480.0,0.00019572,2]
[379842995,1755423040264,-480.0,0.00019572,2]
[379842996,1755423040273,-4061.86,0.00019572,2]
[379842997,1755423040283,-480.0,0.00019572,2]
[379842998,1755423040292,-480.0,0.00019572,2]
[379842999,1755423040301,-610.31,0.00019572,2]
[379843000,1755423040310,-480.0,0.00019572,2]
[379843001,1755423040320,-480.0,0.00019572,2]
[379843002,1755423040329,-482.03528139,0.00019573,2]
[379843003,1755423040338,-498.44,0.00019573,2]
[379843004,1755423040347,-462.56613767,0.00019573,2]
[379843005,1755423040356,-480.0,0.00019573,2]
[379843006,1755423040365,-512.48,0.00019573,2]
[379843007,1755423040375,-480.0,0.00019573,2]
[379843008,1755423040383,-480.0,0.00019573,2]
[379843009,1755423040392,-400.0,0.00019573,2]
[379843010,1755423040402,-480.0,0.00019573,2]
[379843011,1755423040411,-480.0,0.00019573,2]
[379843012,1755423040420,-480.0,0.00019573,2]
[379843013,1755423040429,-480.0,0.00019573,2]
[379843014,1755423040438,-480.0,0.00019573,2]
[379843015,1755423040448,-480.0,0.00019573,2]
[379843016,1755423040457,-480.0,0.00019573,2]
[379843017,1755423040466,-480.0,0.00019573,2]
[379843018,1755423040475,-484.24,0.00019573,2]
[379843019,1755423040485,-480.0,0.00019573,2]
[379843020,1755423040494,-480.0,0.00019573,2]
[379843021,1755423040503,-336.73175392,0.00019573,2]
[379843022,1755423040512,-480.0,0.00019573,2]
[379843023,1755423040521,-480.0,0.00019573,2]
[379843024,1755423040530,-480.0,0.00019573,2]
[379843025,1755423040539,-480.0,0.00019573,2]
[379843026,1755423040548,-480.0,0.00019573,2]
[379843027,1755423040558,-480.0,0.00019573,2]
[379843028,1755423040567,-480.0,0.00019573,2]
[379843029,1755423040576,-480.0,0.00019573,2]
[379843030,1755423040585,-480.0,0.00019573,2]
[379843031,1755423040594,-208.17525389,0.00019573,2]
[379843032,1755423040603,-444.93878312,0.00019573,2]
[379843033,1755423040613,-480.0,0.00019573,2]
[379843034,1755423040622,-480.0,0.00019573,2]
[379843036,1755423040631,-480.0,0.00019573,2]
[379843037,1755423040640,-480.0,0.00019573,2]
[379843039,1755423040649,-480.0,0.00019573,2]
[379843040,1755423040658,-480.0,0.00019573,2]
[379843041,1755423040667,-480.0,0.00019573,2]
[379843042,1755423040677,-480.0,0.00019573,2]
[379843044,1755423040686,-480.0,0.00019573,2]
[379843045,1755423040695,-480.0,0.00019573,2]
[379843046,1755423040703,-480.0,0.00019573,2]
[379843047,1755423040712,-460.0,0.00019573,2]
[379843049,1755423040722,-1039.63,0.00019573,2]
[379843051,1755423040732,-500.0,0.00019573,2]
[379843053,1755423040741,-500.0,0.00019573,2]
[379843054,1755423040750,-480.0,0.00019574,2]
[379843056,1755423040760,-1844.13,0.00019574,2]
[379843058,1755423040769,-480.0,0.00019574,2]
[379843060,1755423040779,-480.0,0.00019576,2]
[379843062,1755423040788,-196.47233498,0.00019745,2]
[379843064,1755423040797,-270.72,0.00019748,2]
[379843066,1755423040806,-162.49,0.0001979,3]
[379843068,1755423040815,-487.5,0.0001979,3]
[379843070,1755423040825,-47143.56125103,0.000198,2]
[379843072,1755423040834,-207.73,0.00019843,2]
[379843074,1755423040843,-234.33,0.00019844,2]
[379843076,1755423040853,-480.0,0.00019844,2]
[379843078,1755423040862,-1033.65,0.00019844,2]
[379843080,1755423040871,-460.0,0.00019844,2]
[379843082,1755423040880,-480.0,0.00019844,2]
[379843084,1755423040889,-480.0,0.00019844,2]
[379843086,1755423040898,-460.9902868,0.00019844,2]
[379843088,1755423040907,-480.0,0.00019845,2]
[379843090,1755423040917,-173.28,0.00019845,2]
[379843092,1755423040926,-480.0,0.00019845,2]
[379843093,1755423040940,-480.0,0.00019845,2]
[379843095,1755423040970,-480.0,0.00019845,2]
[379843097,1755423040997,-577.37,0.00019845,2]
[379843100,1755423041023,-269.66431641,0.00019845,2]
[379843102,1755423041033,-480.0,0.00019845,2]
[379843104,1755423041044,-480.0,0.00019845,2]
[379843106,1755423041053,-480.0,0.00019845,2]
[379843108,1755423041064,-480.0,0.00019845,2]
[379843109,1755423041073,-480.0,0.00019845,2]
[379843111,1755423041083,-480.0,0.00019845,2]
[379843113,1755423041093,-480.77,0.00019845,2]
[379843115,1755423041102,-629.46,0.00019845,2]
[379843117,1755423041111,-480.0,0.00019845,2]
[379843119,1755423041122,-563.6,0.00019845,2]
[379843121,1755423041134,-480.0,0.00019845,2]
[379843123,1755423041143,-1265.45,0.00019845,2]
[379843125,1755423041152,-480.0,0.00019845,2]
[379843127,1755423041161,-480.0,0.00019845,2]
[379843129,1755423041171,-480.0,0.00019845,2]
[379843131,1755423041181,-349.02,0.00019845,2]
[379843133,1755423041190,-671.63,0.00019845,2]
[379843135,1755423041200,-480.0,0.00019845,2]
[379843137,1755423041209,-1207.33,0.00019845,2]
[379843139,1755423041218,-480.0,0.00019845,2]
[379843141,1755423041227,-480.0,0.00019845,2]
[379843143,1755423041237,-480.0,0.00019845,2]
[379843145,1755423041247,-480.0,0.00019845,2]
[379843147,1755423041255,-480.0,0.00019845,2]
[379843149,1755423041265,-864.62,0.00019845,2]
[379843151,1755423041275,-480.0,0.00019845,2]
[379843153,1755423041284,-480.0,0.00019845,2]